[Event "ISR-ch Women 2018"]
[Site "Ma'alot-Tarshih"]
[Date "2018.12.19"]
[Round "8"]
[White "Efroimski, Marsel"]
[Black "Nesterovskaya, Anzhelika"]
[Result "1-0"]
[ECO "A40"]
[WhiteElo "2301"]
[BlackElo "2130"]
[Annotator "NA"]
[PlyCount "77"]
[EventDate "2018.12.12"]
[EventType "swiss"]
[EventCountry "ISR"]
[SourceTitle "playchess.com"]
[Source "ChessBase"]
[SourceQuality "1"]
[TimeControl "40/5400+30:1800+30"]

1. e4 {[%emt 0:00:43]} c5 {[%emt 0:00:00]} 2. Nf3 {[%emt 0:00:07]} d6 {[%emt 0:00:00]} 3. c4 {[%emt 0:07:50]} g6 {[%emt 0:03:15]} 4. d4 {[%emt 0:00:06]} Bg7 {[%emt 0:01:22]} 5. Nc3 {[%emt 0:03:54]} Qa5 {[%emt 0:02:21]} 6. dxc5 {[%emt 0:12:00] LiveBook: 11 Games A40: Unusual replies to 1 d4} (6. d5 Bxc3+ 7. bxc3 Nf6 8. Qc2 Nxe4 9. Bd3 f5 10. O-O Nd7 11. Re1 Ndf6 12. Ng5 Bd7 13. f3 Nxg5 14. Bxg5 {0-1 (36) Wojtaszek,R (2727)-Fressinet,L (2700) Huaian 2016}) 6... Bxc3+ {[%emt 0:02:05]} 7. bxc3 {[%emt 0:00:03]} Qxc5 {[%emt 0:00:08]} 8. Qd4 {[%emt 0:18:26]} f6 {[%emt 0:00:38]} 9. Be3 {[%emt 0:03:26]} Qa5 {[%emt 0:04:13]} 10. Be2 {[%emt 0:02:16]} Nd7 $146 {[%emt 0:29:38]} ({Predecessor:} 10... Nc6 11. Qd2 f5 12. exf5 gxf5 {½-½ (46) Butuc,M (2098)-Plischki,S (2358) Marianske Lazne 2008}) 11. O-O {[%emt 0:01:28]} Nc5 {[%emt 0:01:47]} 12. Nd2 {[%emt 0:07:45]} Qc7 {[%emt 0:04:32]} 13. Nb3 {[%emt 0:02:46]} e5 {[%emt 0:00:37]} 14. Qd1 {[%emt 0:08:14]} Nxe4 {[%emt 0:00:12]} 15. Bf3 {[%emt 0:09:17]} Nxc3 {[%emt 0:12:24]} 16. Qe1 {[%emt 0:00:50]} Na4 {[%emt 0:02:12]} 17. Qb4 {[%emt 0:00:08]} Nb2 {[%emt 0:07:18]} 18. c5 {[%emt 0:06:44]} d5 {[%emt 0:04:17]} 19. Bxd5 {[%emt 0:00:45]} Ne7 {[%emt 0:00:07]} 20. Bf3 $16 {[%emt 0:00:28]} Qd7 {[%emt 0:09:50]} 21. Nc1 {[%emt 0:05:51]} Nd3 {[%emt 0:01:44]} 22. Nxd3 {[%emt 0:00:11]} Qxd3 {[%emt 0:00:01]} 23. Bxb7 {[%emt 0:02:36]} Bxb7 {[%emt 0:00:59]} 24. Qxb7 {[%emt 0:00:02]} Qd5 {[%emt 0:00:31]} 25. Rab1 {[%emt 0:00:30]} Kf7 {[%emt 0:01:54]} 26. Qa6 {[%emt 0:02:46]} Rhc8 {[%emt 0:00:52]} 27. Rfd1 {[%emt 0:01:49]} Rab8 {[%emt 0:00:29]} 28. Rbc1 {[%emt 0:00:38]} Qe6 {[%emt 0:01:11]} 29. Rd6 {[%emt 0:00:23]} Qf5 {[%emt 0:00:20]} 30. Qc4+ {[%emt 0:01:14]} Kg7 {[%emt 0:00:23]} 31. g4 {[%emt 0:01:37]} Qf3 {[%emt 0:00:29]} 32. Rd7 {[%emt 0:00:20]} Rb7 {[%emt 0:00:43]} 33. Rcd1 {[%emt 0:00:30]} e4 {[%emt 0:00:30]} 34. Qe6 {[%emt 0:00:16]} Re8 {[%emt 0:00:25]} 35. c6 {[%emt 0:00:28]} Rc7 {[%emt 0:00:26]} 36. R1d2 {[%emt 0:00:57]} Rxd7 {[%emt 0:01:09]} 37. cxd7 {[%emt 0:00:29]} Nf5 {[%emt 0:00:05]} 38. dxe8=N+ {[%emt 0:00:13]} Kf8 {[%emt 0:00:13]} 39. Qxf6+ {[%emt 0:00:07]} 1-0

[Event "ISR-ch Women 2018"]
[Site "Ma'alot-Tarshih"]
[Date "2018.12.19"]
[Round "8"]
[White "Klinova, Masha"]
[Black "Reprun, Nadejda"]
[Result "1-0"]
[ECO "B12"]
[WhiteElo "2267"]
[BlackElo "2016"]
[Annotator "ChessBase"]
[PlyCount "43"]
[EventDate "2018.12.12"]
[EventType "swiss"]
[EventCountry "ISR"]
[SourceTitle "playchess.com"]
[Source "ChessBase"]
[SourceQuality "1"]
[TimeControl "40/5400+30:1800+30"]

1. e4 {[%emt 0:00:00]} c6 {[%emt 0:00:00]} 2. d4 {[%emt 0:00:00]} d5 {[%emt 0:00:00]} 3. e5 {[%emt 0:00:00]} c5 {[%emt 0:00:00]} 4. Nf3 {[%emt 0:00:00]} Nc6 {[%emt 0:00:34]} 5. c4 {[%emt 0:00:00]} cxd4 {[%emt 0:08:09]} 6. Nxd4 {[%emt 0:02:35]} Qb6 {[%emt 0:10:03]} 7. Nxc6 {[%emt 0:04:48]} bxc6 {[%emt 0:01:12]} 8. cxd5 {[%emt 0:01:22]} e6 {[%emt 0:11:58]} 9. dxc6 {[%emt 0:10:52]} Qa5+ {[%emt 0:03:43]} 10. Nc3 {[%emt 0:01:57]} Qxe5+ {[%emt 0:00:04]} 11. Be2 {[%emt 0:10:30]} Bb4 {[%emt 0:00:41]} 12. O-O {[%emt 0:00:58]} Nf6 {[%emt 0:12:57]} 13. Bf3 {[%emt 0:11:05]} Bxc3 {[%emt 0:02:28]} 14. bxc3 {[%emt 0:00:33]} O-O {[%emt 0:00:03]} 15. Ba3 {[%emt 0:11:56]} Ba6 {[%emt 0:02:19]} 16. Re1 {[%emt 0:00:56]} Qxc3 {[%emt 0:00:36]} 17. Bxf8 {[%emt 0:00:10]} Rxf8 {[%emt 0:00:03]} 18. Qa4 {[%emt 0:02:35]} Qc4 {[%emt 0:01:31]} 19. Qxc4 {[%emt 0:00:39]} Bxc4 {[%emt 0:00:01]} 20. Rec1 {[%emt 0:00:30]} Bd5 {[%emt 0:00:17]} 21. c7 {[%emt 0:00:54]} Rc8 {[%emt 0:00:07]} 22. Rab1 {[%emt 0:00:30]} 1-0

[Event "ISR-ch Women 2018"]
[Site "Ma'alot-Tarshih"]
[Date "2018.12.19"]
[Round "8"]
[White "Vardi, Shlomit"]
[Black "Levitan, Ronit"]
[Result "0-1"]
[ECO "C44"]
[WhiteElo "1910"]
[BlackElo "1875"]
[Annotator "NA"]
[PlyCount "70"]
[EventDate "2018.12.12"]
[EventType "swiss"]
[EventCountry "ISR"]
[SourceTitle "playchess.com"]
[Source "ChessBase"]
[SourceQuality "1"]
[TimeControl "40/5400+30:1800+30"]

1. e4 {[%emt 0:00:00]} e5 {[%emt 0:00:00]} 2. Nf3 {[%emt 0:00:00]} Nc6 {[%emt 0:00:00]} 3. d4 {[%emt 0:00:00]} exd4 {[%emt 0:00:00]} 4. c3 {[%emt 0:00:00]} Nf6 {[%emt 0:04:24]} 5. e5 {[%emt 0:01:03]} Nd5 {[%emt 0:01:50]} 6. cxd4 {[%emt 0:00:19]} d6 {[%emt 0:00:35] LiveBook: 12 Games} 7. Bb5 {[%emt 0:03:00]} dxe5 {[%emt 0:03:39] C44: Ponziani Opening and Scotch Gambit} (7... Be7 8. Nc3 Nxc3 9. bxc3 O-O 10. O-O Bg4 11. h3 Bh5 12. Re1 a6 13. Bd3 dxe5 14. dxe5 Kh8 15. Bf4 {1-0 (29) Lu,S (2533)-Bok,B (2591) Pune 2014}) 8. dxe5 {[%emt 0:07:38]} Bb4+ {[%emt 0:00:28]} 9. Bd2 {[%emt 0:01:23]} Bd7 $146 {[%emt 0:09:39]} ({Predecessor:} 9... O-O 10. O-O Bxd2 11. Nbxd2 Nde7 12. h3 Be6 13. Ng5 Bd5 14. Ngf3 Ng6 15. Re1 {0-1 (62) Mahadevan,A (1503)-Muniz Pardino,A (2103) Hong Kong 2013}) 10. Nc3 {[%emt 0:05:17]} Nxc3 $11 {[%emt 0:00:43]} (10... Bxc3 $5 11. Bxc3 Nxc3 12. bxc3 O-O $11) 11. bxc3 {[%emt 0:00:37]} Be7 {[%emt 0:00:44]} 12. Qe2 {[%emt 0:02:38]} a6 {[%emt 0:04:13]} 13. Bd3 {[%emt 0:00:52]} Be6 {[%emt 0:00:54]} 14. O-O {[%emt 0:01:40]} O-O {[%emt 0:08:50]} 15. Rfd1 {[%emt 0:01:34]} Qc8 {[%emt 0:02:08]} 16. Qe4 {[%emt 0:12:59]} g6 {[%emt 0:00:09]} 17. Ng5 {[%emt 0:03:32]} Bf5 {[%emt 0:11:06]} 18. Qh4 {[%emt 0:02:29]} h5 {[%emt 0:05:13]} 19. Bf4 {[%emt 0:08:09]} Bxd3 {[%emt 0:02:48]} 20. Rxd3 {[%emt 0:00:08]} Qf5 {[%emt 0:00:15]} 21. Re3 {[%emt 0:01:46]} Rad8 {[%emt 0:04:53]} 22. h3 {[%emt 0:02:18]} Rd5 {[%emt 0:06:42]} 23. Qg3 {[%emt 0:16:23]} Bxg5 {[%emt 0:11:16]} 24. Bxg5 {[%emt 0:01:57]} Rxe5 {[%emt 0:01:24]} 25. Rxe5 {[%emt 0:02:31]} Nxe5 {[%emt 0:01:19]} 26. Rd1 {[%emt 0:05:33]} Re8 {[%emt 0:04:03]} 27. f4 {[%emt 0:09:02]} Nc4 {[%emt 0:00:35]} 28. Qf3 {[%emt 0:01:41]} Nd6 {[%emt 0:05:26]} 29. Bh4 {[%emt 0:04:55]} Qc2 {[%emt 0:01:39]} 30. Bf6 {[%emt 0:01:45]} Qxa2 {[%emt 0:03:47]} 31. f5 {[%emt 0:01:45]} Nxf5 {[%emt 0:02:07]} 32. Qxb7 {[%emt 0:00:41]} Qe6 {[%emt 0:00:24]} 33. Bd8 {[%emt 0:01:21]} Qe3+ {[%emt 0:00:27]} 34. Kh1 {[%emt 0:00:34]} Qe2 {[%emt 0:02:37]} 35. Rb1 {[%emt 0:00:28]} Rxd8 {[%emt 0:00:24]} 0-1

[Event "ISR-ch Women 2018"]
[Site "Ma'alot-Tarshih"]
[Date "2018.12.19"]
[Round "8"]
[White "Brusilovski, Lena"]
[Black "Haitovich, Avital"]
[Result "0-1"]
[ECO "B77"]
[WhiteElo "1886"]
[BlackElo "1979"]
[Annotator "NA"]
[PlyCount "68"]
[EventDate "2018.12.12"]
[EventType "swiss"]
[EventCountry "ISR"]
[SourceTitle "playchess.com"]
[Source "ChessBase"]
[SourceQuality "1"]
[TimeControl "40/5400+30:1800+30"]

1. e4 {[%emt 0:00:00]} c5 {[%emt 0:00:00]} 2. Nf3 {[%emt 0:00:46]} d6 {[%emt 0:00:00]} 3. d4 {[%emt 0:01:03]} cxd4 {[%emt 0:00:00]} 4. Nxd4 {[%emt 0:00:23]} Nf6 {[%emt 0:00:00]} 5. Nc3 {[%emt 0:00:46]} g6 {[%emt 0:00:06]} 6. Be3 {[%emt 0:00:13]} Bg7 {[%emt 0:00:11]} 7. f3 {[%emt 0:01:17]} O-O {[%emt 0:00:09]} 8. Bc4 {[%emt 0:00:46]} Nc6 {[%emt 0:01:11]} 9. Qd2 {[%emt 0:01:32]} Bd7 {[%emt 0:00:08]} 10. h4 {[%emt 0:02:14]} Rc8 {[%emt 0:07:39]} 11. Bb3 {[%emt 0:01:38] LiveBook: 464 Games} Na5 {[%emt 0:07:27]} 12. Bh6 {[%emt 0:02:23]} Nxb3 {[%emt 0:08:01]} 13. axb3 $14 {[%emt 0:04:29]} Bxh6 {[%emt 0:23:31]} 14. Qxh6 {[%emt 0:01:45]} Qb6 {[%emt 0:00:54]} 15. Nde2 {[%emt 0:04:22]} Qc5 {[%emt 0:10:02]} 16. h5 {[%emt 0:08:45]} e6 {[%emt 0:17:13]} 17. hxg6 {[%emt 0:01:53]} fxg6 {[%emt 0:00:13]} 18. O-O-O {[%emt 0:01:34]} Rf7 {[%emt 0:03:02]} 19. Rd2 {[%emt 0:11:31]} b5 {[%emt 0:03:11]} 20. g4 {[%emt 0:02:57]} b4 {[%emt 0:00:43]} 21. Nb1 {[%emt 0:03:26]} a5 {[%emt 0:01:25]} 22. Qh2 {[%emt 0:05:57]} Qe3 {[%emt 0:04:41]} 23. Qg2 {[%emt 0:04:11]} a4 {[%emt 0:01:44]} 24. bxa4 {[%emt 0:00:59]} Bxa4 {[%emt 0:00:15]} 25. c3 {[%emt 0:00:41]} Nd7 {[%emt 0:04:25]} 26. Nd4 {[%emt 0:00:58]} Nc5 {[%emt 0:01:25]} 27. Nc2 {[%emt 0:03:13]} Nd3+ {[%emt 0:01:23]} 28. Kd1 {[%emt 0:00:11]} Nxb2+ {[%emt 0:00:10]} 29. Kc1 {[%emt 0:00:02]} Nd3+ {[%emt 0:00:30]} 30. Kd1 {[%emt 0:00:07]} bxc3 {[%emt 0:03:53]} 31. Rxd3 {[%emt 0:01:41]} Qxd3+ {[%emt 0:00:01]} 32. Kc1 {[%emt 0:00:29]} Qxc2+ {[%emt 0:01:32]} 33. Qxc2 {[%emt 0:00:04]} Bxc2 {[%emt 0:00:02]} 34. Kxc2 {[%emt 0:00:02]} Rxf3 {[%emt 0:00:11]} 0-1

[Event "ISR-ch Women 2018"]
[Site "Ma'alot-Tarshih"]
[Date "2018.12.19"]
[Round "8"]
[White "Ovechkin, Lilia"]
[Black "Shaul Zeidner, Lyad"]
[Result "0-1"]
[ECO "D00"]
[WhiteElo "1779"]
[BlackElo "1671"]
[Annotator "NA"]
[PlyCount "119"]
[EventDate "2018.12.12"]
[EventType "swiss"]
[EventCountry "ISR"]
[SourceTitle "playchess.com"]
[Source "ChessBase"]
[SourceQuality "1"]
[TimeControl "40/5400+30:1800+30"]

1. d4 {[%emt 0:00:00]} d5 {[%emt 0:00:00]} 2. Bg5 {[%emt 0:00:00]} Bf5 {[%emt 0:00:23]} 3. e3 {[%emt 0:00:15]} Nf6 {[%emt 0:01:02]} 4. f4 {[%emt 0:00:57]} Nbd7 {[%emt 0:01:59]} 5. Nf3 {[%emt 0:00:51]} h6 {[%emt 0:02:03]} 6. Bh4 {[%emt 0:00:17]} e6 {[%emt 0:00:45]} 7. Ne5 {[%emt 0:01:57]} Be7 {[%emt 0:01:35]} 8. Bf2 {[%emt 0:10:00]} Ne4 {[%emt 0:03:05]} 9. Bg1 {[%emt 0:01:00]} Nxe5 {[%emt 0:03:19]} 10. dxe5 {[%emt 0:07:55]} c6 {[%emt 0:02:03]} 11. Be2 {[%emt 0:08:18]} Qb6 {[%emt 0:05:26]} 12. Qc1 {[%emt 0:01:42]} f6 {[%emt 0:02:45]} 13. exf6 {[%emt 0:12:15]} Bxf6 {[%emt 0:00:36]} 14. c3 {[%emt 0:00:35]} h5 {[%emt 0:01:21]} 15. Nd2 {[%emt 0:01:13]} O-O-O {[%emt 0:04:17]} 16. a4 {[%emt 0:01:07]} a5 {[%emt 0:01:07]} 17. Ra3 {[%emt 0:00:34]} Qc7 {[%emt 0:02:42]} 18. Nxe4 {[%emt 0:05:02]} Bxe4 {[%emt 0:00:48]} 19. Bf3 {[%emt 0:02:24]} Bf5 {[%emt 0:02:21]} 20. Bf2 {[%emt 0:01:29]} e5 {[%emt 0:02:40]} 21. O-O {[%emt 0:01:45]} e4 {[%emt 0:00:50]} 22. Be2 {[%emt 0:01:01]} h4 {[%emt 0:03:12]} 23. b4 {[%emt 0:03:07]} Rdg8 {[%emt 0:03:39]} 24. Qd1 {[%emt 0:06:46]} g6 {[%emt 0:01:53]} 25. b5 {[%emt 0:01:35]} Qd6 {[%emt 0:03:33]} 26. Qb3 {[%emt 0:01:11]} c5 {[%emt 0:02:08]} 27. Rd1 {[%emt 0:00:39]} Rd8 {[%emt 0:01:01]} 28. b6 {[%emt 0:07:48]} c4 {[%emt 0:01:46]} 29. Bxc4 {[%emt 0:00:37]} dxc4 {[%emt 0:00:18]} 30. Qxc4+ {[%emt 0:05:15]} Qc6 {[%emt 0:00:17]} 31. Qxc6+ {[%emt 0:01:46]} bxc6 {[%emt 0:00:02]} 32. Rb1 {[%emt 0:00:28]} Kb7 {[%emt 0:00:15]} 33. c4 {[%emt 0:02:09]} Rd3 {[%emt 0:00:22]} 34. Ra2 {[%emt 0:05:19]} Rhd8 {[%emt 0:01:49]} 35. h3 {[%emt 0:02:51]} Rd1+ {[%emt 0:00:22]} 36. Rxd1 {[%emt 0:00:15]} Rxd1+ {[%emt 0:00:08]} 37. Kh2 {[%emt 0:00:08]} Rc1 {[%emt 0:00:17]} 38. Rd2 {[%emt 0:04:22]} Be7 {[%emt 0:01:48]} 39. g4 {[%emt 0:00:57]} hxg3+ {[%emt 0:00:16]} 40. Bxg3 {[%emt 0:02:18]} Rxc4 {[%emt 0:00:32]} 41. Be1 {[%emt 0:03:20]} Bb4 {[%emt 0:00:48]} 42. Rd1 {[%emt 0:00:08]} Bxe1 43. Rxe1 {[%emt 0:00:02]} Rxa4 {[%emt 0:00:44]} 44. h4 {[%emt 0:01:08]} Kxb6 {[%emt 0:00:28]} 45. Kg3 {[%emt 0:00:57]} c5 {[%emt 0:01:01]} 46. h5 {[%emt 0:01:19]} gxh5 {[%emt 0:00:14]} 47. Kh4 {[%emt 0:00:05]} Ra2 {[%emt 0:01:39]} 48. Kg5 {[%emt 0:01:00]} Bg4 {[%emt 0:00:54]} 49. f5 {[%emt 0:00:15]} Rf2 {[%emt 0:01:32]} 50. f6 {[%emt 0:00:10]} Kc7 {[%emt 0:00:53]} 51. Kg6 {[%emt 0:00:33]} Kd7 {[%emt 0:00:32]} 52. Rb1 {[%emt 0:00:50]} Be6 {[%emt 0:00:41]} 53. Rb5 {[%emt 0:03:04]} Kc6 {[%emt 0:01:15]} 54. Rxa5 {[%emt 0:00:16]} h4 {[%emt 0:01:01]} 55. Ra8 {[%emt 0:02:18]} h3 {[%emt 0:00:40]} 56. Re8 {[%emt 0:00:41]} Kd6 {[%emt 0:00:48]} 57. Rd8+ {[%emt 0:00:23]} Ke5 {[%emt 0:00:50]} 58. Rh8 {[%emt 0:03:00]} Rxf6+ {[%emt 0:00:36]} 59. Kg7 {[%emt 0:01:12]} Rf3 {[%emt 0:00:36]} 60. Rh5+ {[%emt 0:00:18]} 0-1

[Event "ISR-ch Women 2018"]
[Site "Ma'alot-Tarshih"]
[Date "2018.12.19"]
[Round "8"]
[White "Orian, Noga"]
[Black "Lahav, Michal"]
[Result "0-1"]
[ECO "E90"]
[WhiteElo "1343"]
[BlackElo "2059"]
[Annotator "NA"]
[PlyCount "82"]
[EventDate "2018.12.12"]
[EventType "swiss"]
[EventCountry "ISR"]
[SourceTitle "playchess.com"]
[Source "ChessBase"]
[SourceQuality "1"]
[TimeControl "40/5400+30:1800+30"]

1. d4 {[%emt 0:00:00]} Nf6 {[%emt 0:00:00]} 2. c4 {[%emt 0:00:00]} c5 {[%emt 0:00:00]} 3. d5 {[%emt 0:00:00]} e6 {[%emt 0:00:20]} 4. Nc3 {[%emt 0:00:00]} d6 {[%emt 0:00:03]} 5. e4 {[%emt 0:00:19]} exd5 {[%emt 0:00:39]} 6. cxd5 {[%emt 0:01:01]} g6 {[%emt 0:00:11]} 7. Bg5 {[%emt 0:00:42]} Bg7 {[%emt 0:00:07]} 8. Nf3 {[%emt 0:00:42]} h6 {[%emt 0:01:37]} 9. Bd2 {[%emt 0:01:39]} O-O {[%emt 0:00:36]} 10. Bd3 {[%emt 0:00:26]} a6 {[%emt 0:02:38] E90: King's Indian: Classical: Early deviations and 6 h3} (10... Bg4 11. h3 Bxf3 12. Qxf3 Nbd7 13. O-O a6 14. Bf4 Qb6 15. Rac1 Nh5 16. Na4 Qa5 17. Nc3 Nxf4 18. Qxf4 {0-1 (36) Hasford,J (2055)-Matamoros Franco,C (2525) Tromsoe 2014}) 11. a4 {[%emt 0:00:11]} Bg4 {[%emt 0:00:03]} 12. Be2 $146 {[%emt 0:08:12]} ({White should try} 12. h3 $14 Bxf3 13. Qxf3) ({Predecessor:} 12. O-O Nbd7 13. Bf4 Qc7 14. h3 Bxf3 15. Qxf3 Rfe8 16. Rfe1 Nh5 17. Bh2 Ne5 18. Qd1 Nxd3 19. Qxd3 Rad8 20. a5 Nf6 21. Qg3 {½-½ (21) Frajka,P (1810)-Kovalenko,V (2165) Liverpool 2011}) 12... Re8 {[%emt 0:03:26]} 13. h3 {[%emt 0:03:32]} Bc8 {[%emt 0:01:03]} 14. Bd3 {[%emt 0:04:44]} Nxe4 {[%emt 0:02:56]} 15. O-O {[%emt 0:05:31]} Nxd2 {[%emt 0:04:39]} 16. Qxd2 {[%emt 0:00:11]} Nd7 {[%emt 0:00:54]} 17. Ne4 {[%emt 0:06:36]} Nf6 {[%emt 0:04:33]} 18. Nxf6+ {[%emt 0:01:49]} Qxf6 {[%emt 0:00:03]} ({Weaker is} 18... Bxf6 19. Qxh6 Bg7 20. Qf4 $15) 19. b4 {[%emt 0:10:28]} Bxh3 {[%emt 0:33:40]} 20. Rab1 {[%emt 0:02:25]} b6 {[%emt 0:02:36]} 21. Rfe1 {[%emt 0:02:54]} Bg4 {[%emt 0:01:53]} 22. Nh2 {[%emt 0:00:33]} Bf5 {[%emt 0:02:17]} 23. bxc5 {[%emt 0:02:13]} bxc5 {[%emt 0:00:30]} 24. Rxe8+ {[%emt 0:02:36]} Rxe8 {[%emt 0:00:03]} 25. Bxf5 {[%emt 0:00:18]} Qxf5 {[%emt 0:00:33]} 26. Rb6 {[%emt 0:00:16]} Re5 {[%emt 0:01:59]} 27. Qc1 {[%emt 0:05:43]} Re2 {[%emt 0:08:23]} 28. f3 {[%emt 0:02:36]} Ra2 {[%emt 0:00:46]} 29. Rb1 {[%emt 0:08:43]} Bd4+ {[%emt 0:03:20]} 30. Kh1 {[%emt 0:00:17]} Qh5 $19 {[%emt 0:00:03]} 31. f4 {[%emt 0:02:31]} Qxd5 {[%emt 0:00:11]} 32. Nf3 {[%emt 0:01:52]} Qh5+ {[%emt 0:00:02]} 33. Nh2 {[%emt 0:00:11]} Qe2 {[%emt 0:02:07]} 34. Qf1 {[%emt 0:00:40]} Qxf1+ {[%emt 0:00:29]} 35. Rxf1 {[%emt 0:00:10]} Rxa4 {[%emt 0:00:04]} 36. Nf3 {[%emt 0:00:21]} Ra1 {[%emt 0:00:03]} 37. Rxa1 {[%emt 0:00:22]} Bxa1 {[%emt 0:00:03]} 38. Nd2 {[%emt 0:00:10]} Bd4 {[%emt 0:00:33]} 39. Nc4 {[%emt 0:00:50]} d5 {[%emt 0:01:10]} 40. Nb6 {[%emt 0:00:20]} a5 {[%emt 0:00:02]} 41. Nxd5 {[%emt 0:30:36]} a4 {[%emt 0:30:05]} 0-1

[Event "ISR-ch Women 2018"]
[Site "Ma'alot-Tarshih"]
[Date "2018.12.20"]
[Round "9"]
[White "Lahav, Michal"]
[Black "Buzukashvili, Sofia"]
[Result "1-0"]
[ECO "B04"]
[WhiteElo "2059"]
[BlackElo "1963"]
[Annotator "NA RC"]
[PlyCount "73"]
[EventDate "2018.12.12"]
[EventType "swiss"]
[EventCountry "ISR"]
[SourceTitle "playchess.com"]
[Source "ChessBase"]
[SourceQuality "1"]
[TimeControl "40/5400+30:1800+30"]

{[%evp 12,54,44,40,54,35,32767,32767,51,32,37,37,65,19,103,98,32767,32767,32767,32767,225,182,32767,32767,32767,191,155,196,315,253,32767,32767,32767,32767,408,453,518,32767,581,615,557,683,1033,876,603]} 1. e4 {[%emt 0:00:09]} Nf6 {[%emt 0:00:00]} 2. e5 {[%emt 0:00:14]} Nd5 {[%emt 0:00:00]} 3. d4 {[%emt 0:00:05]} d6 {[%emt 0:00:25]} 4. Nf3 {[%emt 0:00:06]} dxe5 {[%emt 0:02:39]} 5. Nxe5 {[%emt 0:01:52]} c6 {[%emt 0:01:07]} 6. Be2 {[%emt 0:09:28]} g6 {[%emt 0:04:35]} 7. O-O {[%emt 0:00:59]} Bg7 {[%emt 0:00:25]} 8. c4 {[%emt 0:08:40]} Nb6 {[%emt 0:03:09]} 9. Nc3 {[%emt 0:01:23]} O-O {[%emt 0:03:32]} 10. Bf4 {[%emt 0:02:40]} Be6 {[%emt 0:04:47] B04: Alekhine's Defence: 4 Nf3} 11. b3 {[%emt 0:00:25]} N8d7 {[%emt 0:00:29]} 12. Nf3 {[%emt 0:03:00] LiveBook: 3 Games} Nf6 {[%emt 0:09:07]} (12... Bg4 $1 $14) 13. Qd2 {[%emt 0:02:27]} Qe8 $146 {[%emt 0:05:11]} ({Predecessor:} 13... Bg4 14. Rad1 Bxf3 15. Bxf3 Qd7 16. d5 c5 17. Rfe1 Rfe8 18. Nb5 {1-0 (35) Shankland,S (2448)-Nguyen,T Chicago 2009}) 14. Rad1 {[%emt 0:09:46]} Rc8 {[%emt 0:13:03]} 15. Rfe1 {[%emt 0:03:12]} Nfd7 {[%emt 0:11:31]} (15... Bg4 $16 {is a better defense.} 16. h3 Be6) 16. h3 {[%emt 0:06:53]} f6 {[%emt 0:14:16]} 17. Bf1 {[%emt 0:00:42]} Bf7 {[%emt 0:09:37]} 18. Ne4 {[%emt 0:07:53]} Qd8 {[%emt 0:01:41]} 19. a4 {[%emt 0:02:49]} e5 {[%emt 0:02:05]} (19... Na8 $142 20. Bh6 Nc7 21. Bxg7 Kxg7) 20. dxe5 {[%emt 0:05:30]} Nxe5 {[%emt 0:00:41]} 21. Nd6 {[%emt 0:00:09]} Nxf3+ {[%emt 0:01:54]} 22. gxf3 {[%emt 0:00:03]} Rc7 {[%emt 0:01:51]} 23. a5 {[%emt 0:04:06]} Na8 {[%emt 0:01:19]} 24. Qe3 {[%emt 0:06:15]} Qb8 {[%emt 0:03:49]} 25. Nxf7 {[%emt 0:00:43] Pin} Rfxf7 {[%emt 0:00:15]} 26. c5 {[%emt 0:04:49]} Rf8 {[%emt 0:01:32]} 27. Bc4+ {[%emt 0:00:39]} Kh8 $18 {[%emt 0:00:06]} 28. Rd7 {[%emt 0:00:47]} Qc8 {[%emt 0:00:26]} 29. Rdd1 {[%emt 0:02:55]} Qxh3 {[%emt 0:01:55]} 30. Bxc7 {[%emt 0:00:02]} Nxc7 {[%emt 0:00:06]} 31. Qf4 {[%emt 0:01:20]} Qc8 {[%emt 0:00:47]} 32. Re7 {[%emt 0:01:10]} Ne8 {[%emt 0:00:15]} 33. Be6 {[%emt 0:00:26]} Qa8 {[%emt 0:00:20]} 34. Rdd7 {[%emt 0:00:59]} g5 {[%emt 0:00:40]} 35. Qh2 {[%emt 0:00:30]} f5 {[%emt 0:00:58]} 36. Qh6 {[%emt 0:00:52]} Rf6 {[%emt 0:00:58]} 37. Rxg7 {[%emt 0:00:10]} 1-0

[Event "ISR-ch Women 2018"]
[Site "Ma'alot-Tarshih"]
[Date "2018.12.20"]
[Round "9"]
[White "Haitovich, Avital"]
[Black "Efroimski, Marsel"]
[Result "0-1"]
[ECO "A07"]
[WhiteElo "1979"]
[BlackElo "2301"]
[Annotator "ChessBase"]
[PlyCount "110"]
[EventDate "2018.12.12"]
[EventType "swiss"]
[EventCountry "ISR"]
[SourceTitle "playchess.com"]
[Source "ChessBase"]
[SourceQuality "1"]
[TimeControl "40/5400+30:1800+30"]

1. Nf3 {[%emt 0:00:00]} d5 {[%emt 0:01:20]} 2. g3 {[%emt 0:00:00]} g6 {[%emt 0:00:04]} 3. Bg2 {[%emt 0:00:00]} Bg7 {[%emt 0:00:02]} 4. O-O {[%emt 0:00:16]} e5 {[%emt 0:00:06]} 5. d3 {[%emt 0:00:36]} Ne7 {[%emt 0:00:05]} 6. e4 {[%emt 0:04:47]} O-O {[%emt 0:00:22]} 7. Nbd2 {[%emt 0:01:10]} Nbc6 {[%emt 0:12:54]} 8. Re1 {[%emt 0:06:38]} d4 {[%emt 0:10:46]} 9. a4 {[%emt 0:14:43]} h6 {[%emt 0:01:19]} 10. Nc4 {[%emt 0:12:16]} Be6 {[%emt 0:02:34]} 11. b3 {[%emt 0:03:05]} a6 {[%emt 0:08:50]} 12. Bd2 {[%emt 0:09:06]} Qd7 {[%emt 0:15:25]} 13. Qc1 {[%emt 0:08:45]} Kh7 {[%emt 0:01:31]} 14. Qa3 {[%emt 0:00:42]} b6 {[%emt 0:11:54]} 15. b4 {[%emt 0:07:25]} b5 {[%emt 0:07:59]} 16. axb5 {[%emt 0:02:48]} axb5 {[%emt 0:00:09]} 17. Na5 {[%emt 0:00:05]} Ra6 {[%emt 0:01:04]} 18. Reb1 {[%emt 0:04:46]} Bg4 {[%emt 0:10:00]} 19. Qb3 {[%emt 0:03:58]} Rfa8 {[%emt 0:06:12]} 20. Qb2 {[%emt 0:03:40]} Nxa5 {[%emt 0:01:17]} 21. Rxa5 {[%emt 0:02:18]} Rxa5 {[%emt 0:01:12]} 22. bxa5 {[%emt 0:00:01]} c6 {[%emt 0:00:18]} 23. Qb4 {[%emt 0:02:11]} Nc8 {[%emt 0:03:47]} 24. Qc5 {[%emt 0:08:28]} Qd6 {[%emt 0:02:09]} 25. Qb4 {[%emt 0:03:15]} Bd7 {[%emt 0:00:28]} 26. Qb3 {[%emt 0:01:01]} Kg8 {[%emt 0:00:21]} 27. Be1 {[%emt 0:00:54]} c5 {[%emt 0:00:21]} 28. Ra1 {[%emt 0:00:29]} Ra6 {[%emt 0:00:38]} 29. Nd2 {[%emt 0:00:21]} Na7 {[%emt 0:00:31]} 30. Qd5 {[%emt 0:00:28]} Qxd5 {[%emt 0:00:40]} 31. exd5 {[%emt 0:00:01]} f5 {[%emt 0:00:16]} 32. Nb3 {[%emt 0:00:21]} Bf8 {[%emt 0:00:09]} 33. Bd2 {[%emt 0:00:47]} c4 {[%emt 0:01:02]} 34. dxc4 {[%emt 0:00:54]} bxc4 {[%emt 0:00:01]} 35. Nc1 {[%emt 0:00:10]} c3 {[%emt 0:00:35]} 36. Be1 {[%emt 0:00:00]} Bb5 {[%emt 0:01:00]} 37. Bf1 {[%emt 0:00:28]} Bxf1 {[%emt 0:00:33]} 38. Kxf1 {[%emt 0:00:02]} Rd6 {[%emt 0:00:25]} 39. f4 {[%emt 0:00:54]} e4 {[%emt 0:00:13]} 40. Ra4 {[%emt 0:01:32]} Rxd5 {[%emt 0:00:10]} 41. Nb3 {[%emt 0:05:34]} Bg7 {[%emt 0:11:06]} 42. Rc4 {[%emt 0:06:33]} d3 {[%emt 0:15:05]} 43. Bxc3 {[%emt 0:13:52]} Bxc3 {[%emt 0:00:08]} 44. Rxc3 {[%emt 0:00:02]} d2 {[%emt 0:00:08]} 45. Nxd2 {[%emt 0:00:04]} Rxd2 {[%emt 0:00:02]} 46. Rc7 {[%emt 0:00:16]} Nb5 {[%emt 0:00:11]} 47. Rc8+ {[%emt 0:03:51]} Kf7 {[%emt 0:02:15]} 48. Rb8 {[%emt 0:02:16]} Nc7 {[%emt 0:04:10]} 49. c4 {[%emt 0:01:57]} Ke7 {[%emt 0:00:21]} 50. Rb7 {[%emt 0:00:33]} Kd7 {[%emt 0:00:26]} 51. a6 {[%emt 0:00:32]} Kc6 {[%emt 0:00:32]} 52. Rb8 {[%emt 0:00:23]} Nxa6 {[%emt 0:00:06]} 53. Rh8 {[%emt 0:00:30]} h5 {[%emt 0:00:24]} 54. Rc8+ {[%emt 0:00:23]} Kb6 {[%emt 0:00:22]} 55. Rg8 {[%emt 0:00:21]} Rd6 {[%emt 0:00:05]} 0-1